[Event "December 12 Early 2023"]
[Site "https://www.chess.com"]
[Date "2023.12.12"]
[Round "2"]
[White "Oparin, Grigoriy"]
[Black "Smirnov, Alexandr A."]
[Result "1-0"]
[Board "7"]
[TimeControl "180+1"]
[WhiteFideId "24125890"]
[BlackFideId "24104396"]
[WhiteElo "3053"]
[BlackElo "2649"]
[WhiteTeam "USA"]
[BlackTeam "RUS"]
[WhiteClock "0:00:27"]
[BlackClock "0:00:08"]

1. Nc3 {[%clk 0:03:00]}  c5 {[%clk 0:02:57]} 2. e4 {[%clk 0:03:01]}  Nc6 {[%clk 0:02:57]} 3. Nf3 {[%clk 0:03:01]}  g6 {[%clk 0:02:57]} 4. d4 {[%clk 0:03:01]}  cxd4 {[%clk 0:02:58]} 5. Nxd4 {[%clk 0:03:02]}  Bg7 {[%clk 0:02:58]} 6. Be3 {[%clk 0:03:03]}  d6 {[%clk 0:02:58]} 7. Bc4 {[%clk 0:03:02]}  Nf6 {[%clk 0:02:58]} 8. f3 {[%clk 0:03:01]}  O-O {[%clk 0:02:57]} 9. Bb3 {[%clk 0:03:01]}  Bd7 {[%clk 0:02:55]} 10. h4 {[%clk 0:03:01]}  h5 {[%clk 0:02:54]} 11. Qd2 {[%clk 0:03:01]}  Rc8 {[%clk 0:02:54]} 12. O-O-O {[%clk 0:03:01]}  Na5 {[%clk 0:02:54]} 13. Kb1 {[%clk 0:03:01]}  Nc4 {[%clk 0:02:52]} 14. Bxc4 {[%clk 0:03:01]}  Rxc4 {[%clk 0:02:53]} 15. Qd3 {[%clk 0:02:55]}  b5 {[%clk 0:02:17]} 16. Bg5 {[%clk 0:02:54]}  Qb8 {[%clk 0:02:12]} 17. Nb3 {[%clk 0:02:45]}  Rfc8 {[%clk 0:02:05]} 18. e5 {[%clk 0:02:45]}  Bf5 {[%clk 0:01:59]} 19. Qxf5 {[%clk 0:02:30]}  gxf5 {[%clk 0:01:59]} 20. exf6 {[%clk 0:02:31]}  Bxf6 {[%clk 0:01:59]} 21. Bxf6 {[%clk 0:02:28]}  exf6 {[%clk 0:02:00]} 22. Nd5 {[%clk 0:02:27]}  Rxc2 {[%clk 0:01:51]} 23. Ne7+ {[%clk 0:02:24]}  Kf8 {[%clk 0:01:51]} 24. Nxc8 {[%clk 0:02:24]}  Qxc8 {[%clk 0:01:51]} 25. Rxd6 {[%clk 0:02:05]}  Rxg2 {[%clk 0:01:20]} 26. Rc1 {[%clk 0:02:05]}  Qe8 {[%clk 0:01:20]} 27. Nd4 {[%clk 0:01:52]}  Qe5 {[%clk 0:01:12]} 28. Rd8+ {[%clk 0:01:51]}  Kg7 {[%clk 0:01:12]} 29. a3 {[%clk 0:01:52]}  a5 {[%clk 0:01:09]} 30. Rcc8 {[%clk 0:01:49]}  Qe1+ {[%clk 0:00:28]} 31. Ka2 {[%clk 0:01:49]}  Rxb2+ {[%clk 0:00:28]} 32. Kxb2 {[%clk 0:01:50]}  Qf2+ {[%clk 0:00:24]} 33. Rc2 {[%clk 0:01:14]}  Qe1 {[%clk 0:00:21]} 34. Rg2+ {[%clk 0:00:58]}  Kh7 {[%clk 0:00:21]} 35. Rgg8 {[%clk 0:00:59]}  Qf2+ {[%clk 0:00:17]} 36. Nc2 {[%clk 0:00:59]}  f4 {[%clk 0:00:17]} 37. Rh8+ {[%clk 0:00:51]}  Kg6 {[%clk 0:00:17]} 38. Rdg8+ {[%clk 0:00:46]}  Kf5 {[%clk 0:00:18]} 39. Rxh5+ {[%clk 0:00:46]}  Ke6 {[%clk 0:00:18]} 40. Rxb5 {[%clk 0:00:45]}  Kd6 {[%clk 0:00:18]} 41. Rd8+ {[%clk 0:00:39]}  Kc7 {[%clk 0:00:15]} 42. Rd3 {[%clk 0:00:38]}  f5 {[%clk 0:00:15]} 43. Rxf5 {[%clk 0:00:35]}  Qxh4 {[%clk 0:00:15]} 44. Rxf7+ {[%clk 0:00:34]}  Kb6 {[%clk 0:00:14]} 45. Rfd7 {[%clk 0:00:31]}  Qf2 {[%clk 0:00:12]} 46. Rc3 {[%clk 0:00:30]}  Qg1 {[%clk 0:00:10]} 47. Rd5 {[%clk 0:00:28]}  Qf2 {[%clk 0:00:10]} 48. a4 {[%clk 0:00:28]}  Ka6 {[%clk 0:00:10]} 49. Rb5 {[%clk 0:00:27]}  Ka7 {[%clk 0:00:09]} 50. Rxa5+ {[%clk 0:00:27]}  Kb6 {[%clk 0:00:09]} 51. Rb5+ {[%clk 0:00:28]}  Ka6 {[%clk 0:00:10]} 52. Kb3 {[%clk 0:00:27]}  Qg1 {[%clk 0:00:09]} 53. Nb4+ {[%clk 0:00:26]}  Ka7 {[%clk 0:00:09]} 54. Rc7+ {[%clk 0:00:24]}  Ka8 {[%clk 0:00:09]} 55. Rc8+ {[%clk 0:00:25]}  Ka7 {[%clk 0:00:09]} 56. Nc6+ {[%clk 0:00:25]}  Ka6 {[%clk 0:00:09]} 57. Ra8+ {[%clk 0:00:26]}  Qa7 {[%clk 0:00:08]} 58. Rxa7# {[%clk 0:00:27]} 1-0

[Event "December 12 Early 2023"]
[Site "https://www.chess.com"]
[Date "2023.12.12"]
[Round "2"]
[White "Omelja, Artem"]
[Black "Sarana, Alexey"]
[Result "0-1"]
[Board "10"]
[TimeControl "180+1"]
[WhiteFideId "14119846"]
[BlackFideId "24133795"]
[WhiteElo "2642"]
[BlackElo "3029"]
[WhiteTeam "UKR"]
[BlackTeam "SRB"]
[WhiteClock "0:00:05"]
[BlackClock "0:00:22"]

1. d4 {[%clk 0:03:00]}  Nf6 {[%clk 0:02:59]} 2. c4 {[%clk 0:03:00]}  e6 {[%clk 0:03:00]} 3. Nf3 {[%clk 0:03:00]}  d5 {[%clk 0:03:00]} 4. Nc3 {[%clk 0:03:00]}  Bb4 {[%clk 0:02:59]} 5. cxd5 {[%clk 0:03:00]}  exd5 {[%clk 0:02:59]} 6. Qa4+ {[%clk 0:03:00]}  Nc6 {[%clk 0:02:58]} 7. Bg5 {[%clk 0:03:01]}  h6 {[%clk 0:02:58]} 8. Bxf6 {[%clk 0:03:01]}  Qxf6 {[%clk 0:02:59]} 9. e3 {[%clk 0:03:02]}  O-O {[%clk 0:02:58]} 10. Bb5 {[%clk 0:03:02]}  Bxc3+ {[%clk 0:02:54]} 11. bxc3 {[%clk 0:03:01]}  Ne7 {[%clk 0:02:55]} 12. Be2 {[%clk 0:02:59]}  Nf5 {[%clk 0:02:50]} 13. c4 {[%clk 0:02:54]}  dxc4 {[%clk 0:02:43]} 14. Qxc4 {[%clk 0:02:55]}  c6 {[%clk 0:02:43]} 15. O-O {[%clk 0:02:54]}  Be6 {[%clk 0:02:43]} 16. Qb4 {[%clk 0:02:46]}  Qe7 {[%clk 0:02:41]} 17. Qb2 {[%clk 0:02:44]}  Bd5 {[%clk 0:02:39]} 18. Rab1 {[%clk 0:02:40]}  Nd6 {[%clk 0:02:39]} 19. Rfc1 {[%clk 0:02:37]}  Be4 {[%clk 0:02:37]} 20. Ra1 {[%clk 0:02:36]}  Rae8 {[%clk 0:02:36]} 21. Nd2 {[%clk 0:02:35]}  Bd5 {[%clk 0:02:36]} 22. a4 {[%clk 0:02:32]}  f5 {[%clk 0:02:35]} 23. Bf3 {[%clk 0:02:24]}  Ne4 {[%clk 0:02:29]} 24. Nc4 {[%clk 0:02:10]}  f4 {[%clk 0:02:22]} 25. exf4 {[%clk 0:01:46]}  Rxf4 {[%clk 0:02:23]} 26. Ne5 {[%clk 0:01:46]}  Qg5 {[%clk 0:02:22]} 27. Qxb7 {[%clk 0:01:25]}  Re7 {[%clk 0:01:37]} 28. Qb4 {[%clk 0:00:55]}  Kh7 {[%clk 0:01:12]} 29. Bxe4+ {[%clk 0:00:19]}  Rxe4 {[%clk 0:01:05]} 30. Qb1 {[%clk 0:00:11]}  g6 {[%clk 0:01:00]} 31. Nf3 {[%clk 0:00:10]}  Qf6 {[%clk 0:00:47]} 32. Qd3 {[%clk 0:00:08]}  Rg4 {[%clk 0:00:46]} 33. Ra3 {[%clk 0:00:05]}  Qf4 {[%clk 0:00:34]} 34. Rd1 {[%clk 0:00:05]}  Rf7 {[%clk 0:00:17]} 35. h3 {[%clk 0:00:04]}  Qxf3 {[%clk 0:00:17]} 36. Qxf3 {[%clk 0:00:04]}  Rxf3 {[%clk 0:00:18]} 37. Rxf3 {[%clk 0:00:03]}  Bxf3 {[%clk 0:00:18]} 38. Rd3 {[%clk 0:00:03]}  Rxg2+ {[%clk 0:00:18]} 39. Kf1 {[%clk 0:00:03]}  Bd5 {[%clk 0:00:19]} 40. Re3 {[%clk 0:00:02]}  Rh2 {[%clk 0:00:19]} 41. Re7+ {[%clk 0:00:02]}  Kg8 {[%clk 0:00:20]} 42. Rxa7 {[%clk 0:00:02]}  Rxh3 {[%clk 0:00:21]} 43. a5 {[%clk 0:00:02]}  Ra3 {[%clk 0:00:21]} 44. Ke2 {[%clk 0:00:03]}  h5 {[%clk 0:00:21]} 45. Kf1 {[%clk 0:00:03]}  h4 {[%clk 0:00:22]} 46. Kg1 {[%clk 0:00:04]}  Ra1+ {[%clk 0:00:21]} 47. Kh2 {[%clk 0:00:05]}  Rh1# {[%clk 0:00:22]} 0-1

[Event "December 12 Early 2023"]
[Site "https://www.chess.com"]
[Date "2023.12.12"]
[Round "2"]
[White "Paravyan, David"]
[Black "Renjith, Sravan"]
[Result "1-0"]
[Board "11"]
[TimeControl "180+1"]
[WhiteFideId "4194985"]
[BlackFideId "4306783"]
[WhiteElo "3020"]
[BlackElo "2638"]
[WhiteTeam "FID"]
[BlackTeam "NZL"]
[WhiteClock "0:01:00"]
[BlackClock "0:00:14"]

1. e4 {[%clk 0:03:00]}  e5 {[%clk 0:02:59]} 2. Nf3 {[%clk 0:03:01]}  Nc6 {[%clk 0:03:00]} 3. Bc4 {[%clk 0:03:02]}  Nf6 {[%clk 0:02:59]} 4. d3 {[%clk 0:03:02]}  Bc5 {[%clk 0:03:00]} 5. O-O {[%clk 0:03:00]}  O-O {[%clk 0:02:59]} 6. Re1 {[%clk 0:03:00]}  h6 {[%clk 0:02:18]} 7. c3 {[%clk 0:02:49]}  Re8 {[%clk 0:02:16]} 8. b4 {[%clk 0:02:46]}  Bf8 {[%clk 0:02:13]} 9. Qb3 {[%clk 0:02:47]}  Qe7 {[%clk 0:02:10]} 10. a4 {[%clk 0:02:46]}  a6 {[%clk 0:02:07]} 11. Nh4 {[%clk 0:02:18]}  Nh7 {[%clk 0:01:42]} 12. Nf5 {[%clk 0:02:08]}  Qf6 {[%clk 0:01:41]} 13. Nd2 {[%clk 0:02:04]}  d6 {[%clk 0:01:40]} 14. Ne3 {[%clk 0:02:00]}  Ne7 {[%clk 0:01:10]} 15. Nf3 {[%clk 0:01:41]}  Bd7 {[%clk 0:01:10]} 16. d4 {[%clk 0:01:37]}  b5 {[%clk 0:01:08]} 17. Bd3 {[%clk 0:01:32]}  bxa4 {[%clk 0:01:08]} 18. Qd1 {[%clk 0:01:31]}  Ng5 {[%clk 0:00:48]} 19. Nxg5 {[%clk 0:01:27]}  hxg5 {[%clk 0:00:49]} 20. Bc2 {[%clk 0:01:11]}  exd4 {[%clk 0:00:35]} 21. cxd4 {[%clk 0:01:12]}  a5 {[%clk 0:00:33]} 22. Bxa4 {[%clk 0:01:09]}  Bxa4 {[%clk 0:00:32]} 23. Rxa4 {[%clk 0:01:09]}  axb4 {[%clk 0:00:31]} 24. Rxb4 {[%clk 0:01:10]}  Reb8 {[%clk 0:00:25]} 25. Rc4 {[%clk 0:01:05]}  c6 {[%clk 0:00:26]} 26. h3 {[%clk 0:01:02]}  d5 {[%clk 0:00:20]} 27. exd5 {[%clk 0:01:03]}  cxd5 {[%clk 0:00:21]} 28. Rc5 {[%clk 0:01:02]}  Rc8 {[%clk 0:00:17]} 29. Nxd5 {[%clk 0:01:00]}  Nxd5 {[%clk 0:00:17]} 30. Rxd5 {[%clk 0:01:01]}  Rd8 {[%clk 0:00:14]} 31. Bxg5 {[%clk 0:01:00]} 1-0

[Event "December 12 Early 2023"]
[Site "https://www.chess.com"]
[Date "2023.12.12"]
[Round "2"]
[White "Ivic, Velimir"]
[Black "Antunez Soler, Luis"]
[Result "1-0"]
[Board "19"]
[TimeControl "180+1"]
[WhiteFideId "950122"]
[BlackFideId "3513335"]
[WhiteElo "2966"]
[BlackElo "2628"]
[WhiteTeam "SRB"]
[BlackTeam "CUB"]
[WhiteClock "0:02:25"]
[BlackClock "0:01:50"]

1. e4 {[%clk 0:03:00]}  e6 {[%clk 0:03:00]} 2. d4 {[%clk 0:02:59]}  d5 {[%clk 0:03:00]} 3. Nc3 {[%clk 0:03:00]}  Nf6 {[%clk 0:03:00]} 4. e5 {[%clk 0:03:00]}  Nfd7 {[%clk 0:03:01]} 5. f4 {[%clk 0:03:01]}  c5 {[%clk 0:03:01]} 6. Nf3 {[%clk 0:03:01]}  Nc6 {[%clk 0:03:02]} 7. Be3 {[%clk 0:03:02]}  a6 {[%clk 0:03:03]} 8. Ne2 {[%clk 0:02:58]}  b5 {[%clk 0:03:02]} 9. c3 {[%clk 0:02:57]}  g6 {[%clk 0:03:01]} 10. Ng3 {[%clk 0:02:57]}  b4 {[%clk 0:02:56]} 11. Bd3 {[%clk 0:02:55]}  bxc3 {[%clk 0:02:54]} 12. bxc3 {[%clk 0:02:55]}  cxd4 {[%clk 0:02:54]} 13. cxd4 {[%clk 0:02:55]}  Bb4+ {[%clk 0:02:53]} 14. Bd2 {[%clk 0:02:54]}  Qa5 {[%clk 0:02:47]} 15. Bxb4 {[%clk 0:02:50]}  Qxb4+ {[%clk 0:02:20]} 16. Qd2 {[%clk 0:02:50]}  Rb8 {[%clk 0:02:16]} 17. Rb1 {[%clk 0:02:42]}  Qxd2+ {[%clk 0:02:07]} 18. Kxd2 {[%clk 0:02:43]}  Nb6 {[%clk 0:01:58]} 19. Rhc1 {[%clk 0:02:27]}  Na5 {[%clk 0:01:50]} 20. Rxb6 {[%clk 0:02:25]} 1-0

[Event "December 12 Early 2023"]
[Site "https://www.chess.com"]
[Date "2023.12.12"]
[Round "2"]
[White "Skliarov, Viktor"]
[Black "Nguyen, Ngoc Truong Son"]
[Result "1/2-1/2"]
[Board "20"]
[TimeControl "180+1"]
[WhiteFideId "14106736"]
[BlackFideId "12401110"]
[WhiteElo "2627"]
[BlackElo "2957"]
[WhiteTeam "UKR"]
[BlackTeam "VIE"]
[WhiteClock "0:00:07"]
[BlackClock "0:00:15"]

1. e4 {[%clk 0:03:00]}  c5 {[%clk 0:02:59]} 2. Nf3 {[%clk 0:03:01]}  Nc6 {[%clk 0:03:00]} 3. Bb5 {[%clk 0:03:00]}  e6 {[%clk 0:03:00]} 4. Bxc6 {[%clk 0:03:01]}  bxc6 {[%clk 0:03:01]} 5. d3 {[%clk 0:03:01]}  Ne7 {[%clk 0:02:59]} 6. Qe2 {[%clk 0:03:01]}  Ng6 {[%clk 0:02:53]} 7. h4 {[%clk 0:03:01]}  Qc7 {[%clk 0:02:38]} 8. e5 {[%clk 0:02:54]}  f6 {[%clk 0:02:34]} 9. exf6 {[%clk 0:02:45]}  gxf6 {[%clk 0:02:35]} 10. h5 {[%clk 0:02:45]}  Nf4 {[%clk 0:02:31]} 11. Qe4 {[%clk 0:02:18]}  Bh6 {[%clk 0:02:25]} 12. Bxf4 {[%clk 0:02:08]}  Qxf4 {[%clk 0:02:25]} 13. Nc3 {[%clk 0:02:05]}  Rb8 {[%clk 0:02:03]} 14. b3 {[%clk 0:02:02]}  d5 {[%clk 0:01:57]} 15. Qxf4 {[%clk 0:01:48]}  Bxf4 {[%clk 0:01:58]} 16. Na4 {[%clk 0:01:46]}  Bd6 {[%clk 0:01:58]} 17. c4 {[%clk 0:01:40]}  Rg8 {[%clk 0:01:53]} 18. g3 {[%clk 0:01:37]}  e5 {[%clk 0:01:51]} 19. Rc1 {[%clk 0:00:55]}  e4 {[%clk 0:01:43]} 20. dxe4 {[%clk 0:00:39]}  dxe4 {[%clk 0:01:44]} 21. Nd2 {[%clk 0:00:39]}  f5 {[%clk 0:01:42]} 22. Nf1 {[%clk 0:00:37]}  Be6 {[%clk 0:01:36]} 23. Ne3 {[%clk 0:00:33]}  Ke7 {[%clk 0:01:36]} 24. Ke2 {[%clk 0:00:30]}  Kf6 {[%clk 0:01:30]} 25. Rcd1 {[%clk 0:00:29]}  Be7 {[%clk 0:01:30]} 26. Ng2 {[%clk 0:00:26]}  f4 {[%clk 0:01:22]} 27. Nxf4 {[%clk 0:00:25]}  Bg4+ {[%clk 0:01:22]} 28. Ke3 {[%clk 0:00:26]}  Bxd1 {[%clk 0:01:22]} 29. Rxd1 {[%clk 0:00:27]}  Rbd8 {[%clk 0:01:20]} 30. Rxd8 {[%clk 0:00:14]}  Rxd8 {[%clk 0:01:21]} 31. Kxe4 {[%clk 0:00:15]}  Rd2 {[%clk 0:01:14]} 32. Nd3 {[%clk 0:00:15]}  Rxa2 {[%clk 0:01:13]} 33. f4 {[%clk 0:00:15]}  h6 {[%clk 0:00:35]} 34. Naxc5 {[%clk 0:00:12]}  Bxc5 {[%clk 0:00:33]} 35. Nxc5 {[%clk 0:00:13]}  Ra5 {[%clk 0:00:27]} 36. b4 {[%clk 0:00:12]}  Ra1 {[%clk 0:00:27]} 37. g4 {[%clk 0:00:12]}  Re1+ {[%clk 0:00:26]} 38. Kd4 {[%clk 0:00:12]}  Rd1+ {[%clk 0:00:24]} 39. Ke4 {[%clk 0:00:12]}  Rg1 {[%clk 0:00:23]} 40. Nd7+ {[%clk 0:00:12]}  Ke6 {[%clk 0:00:23]} 41. Ne5 {[%clk 0:00:12]}  c5 {[%clk 0:00:22]} 42. b5 {[%clk 0:00:13]}  Rd1 {[%clk 0:00:20]} 43. Nc6 {[%clk 0:00:07]}  Re1+ {[%clk 0:00:18]} 44. Kf3 {[%clk 0:00:06]}  Rc1 {[%clk 0:00:18]} 45. Ne5 {[%clk 0:00:05]}  Ra1 {[%clk 0:00:16]} 46. Ke4 {[%clk 0:00:06]}  Re1+ {[%clk 0:00:17]} 47. Kf3 {[%clk 0:00:06]}  Ra1 {[%clk 0:00:17]} 48. Ke4 {[%clk 0:00:06]}  Re1+ {[%clk 0:00:16]} 49. Kf3 {[%clk 0:00:07]}  Ra1 {[%clk 0:00:15]} 1/2-1/2

[Event "December 12 Early 2023"]
[Site "https://www.chess.com"]
[Date "2023.12.12"]
[Round "2"]
[White "Zhigalko, Sergei"]
[Black "Kavyev, Ruslan"]
[Result "1-0"]
[Board "21"]
[TimeControl "180+1"]
[WhiteFideId "13502956"]
[BlackFideId "34110981"]
[WhiteElo "2955"]
[BlackElo "2622"]
[WhiteTeam "BLR"]
[BlackTeam "RUS"]
[WhiteClock "0:02:41"]
[BlackClock "0:01:10"]

1. e4 {[%clk 0:03:00]}  c5 {[%clk 0:02:59]} 2. Nf3 {[%clk 0:03:00]}  d6 {[%clk 0:02:59]} 3. d4 {[%clk 0:03:00]}  cxd4 {[%clk 0:03:00]} 4. Qxd4 {[%clk 0:03:01]}  Nc6 {[%clk 0:03:01]} 5. Bb5 {[%clk 0:03:00]}  Bd7 {[%clk 0:03:01]} 6. Bxc6 {[%clk 0:03:01]}  Bxc6 {[%clk 0:03:02]} 7. Nc3 {[%clk 0:03:00]}  Nf6 {[%clk 0:03:02]} 8. Bg5 {[%clk 0:03:00]}  e6 {[%clk 0:03:03]} 9. O-O-O {[%clk 0:03:00]}  Be7 {[%clk 0:03:03]} 10. Rhe1 {[%clk 0:03:00]}  Qa5 {[%clk 0:03:03]} 11. Kb1 {[%clk 0:02:59]}  O-O {[%clk 0:03:03]} 12. Qd2 {[%clk 0:02:59]}  Qc7 {[%clk 0:02:58]} 13. Nd4 {[%clk 0:02:58]}  Rab8 {[%clk 0:02:46]} 14. f3 {[%clk 0:02:53]}  Rfd8 {[%clk 0:02:43]} 15. g4 {[%clk 0:02:53]}  b5 {[%clk 0:02:43]} 16. Nce2 {[%clk 0:02:52]}  Be8 {[%clk 0:02:41]} 17. Ng3 {[%clk 0:02:52]}  b4 {[%clk 0:02:40]} 18. Rg1 {[%clk 0:02:42]}  a5 {[%clk 0:02:40]} 19. Nh5 {[%clk 0:02:42]}  a4 {[%clk 0:01:36]} 20. Bxf6 {[%clk 0:02:42]}  gxf6 {[%clk 0:01:10]} 21. Qh6 {[%clk 0:02:41]} 1-0

[Event "December 12 Early 2023"]
[Site "https://www.chess.com"]
[Date "2023.12.12"]
[Round "2"]
[White "Jia, Haoxiang"]
[Black "Bok, Benjamin"]
[Result "0-1"]
[Board "22"]
[TimeControl "180+1"]
[WhiteFideId "8602999"]
[BlackFideId "1017063"]
[WhiteElo "2619"]
[BlackElo "2949"]
[WhiteTeam "CHN"]
[BlackTeam "NED"]
[WhiteClock "0:01:00"]
[BlackClock "0:01:10"]

1. d4 {[%clk 0:03:00]}  Nf6 {[%clk 0:02:59]} 2. Bf4 {[%clk 0:03:00]}  d5 {[%clk 0:02:58]} 3. e3 {[%clk 0:02:59]}  c5 {[%clk 0:02:58]} 4. c3 {[%clk 0:02:59]}  Nc6 {[%clk 0:02:58]} 5. Nd2 {[%clk 0:02:59]}  Bf5 {[%clk 0:02:58]} 6. dxc5 {[%clk 0:02:58]}  e5 {[%clk 0:02:56]} 7. Bg5 {[%clk 0:02:58]}  Bxc5 {[%clk 0:02:56]} 8. Ngf3 {[%clk 0:02:57]}  O-O {[%clk 0:02:56]} 9. Be2 {[%clk 0:02:52]}  Qe7 {[%clk 0:02:55]} 10. O-O {[%clk 0:02:52]}  Rad8 {[%clk 0:02:56]} 11. Qa4 {[%clk 0:02:52]}  h6 {[%clk 0:02:54]} 12. Bxf6 {[%clk 0:02:48]}  Qxf6 {[%clk 0:02:53]} 13. e4 {[%clk 0:02:48]}  dxe4 {[%clk 0:02:04]} 14. Nxe4 {[%clk 0:02:47]}  Bxe4 {[%clk 0:02:05]} 15. Qxe4 {[%clk 0:02:47]}  Qe7 {[%clk 0:02:05]} 16. Rfd1 {[%clk 0:02:46]}  f5 {[%clk 0:02:00]} 17. Qc4+ {[%clk 0:02:44]}  Kh7 {[%clk 0:01:58]} 18. b4 {[%clk 0:02:37]}  Bb6 {[%clk 0:01:57]} 19. a4 {[%clk 0:02:30]}  e4 {[%clk 0:01:55]} 20. Ne1 {[%clk 0:02:27]}  Ne5 {[%clk 0:01:47]} 21. Qb5 {[%clk 0:02:20]}  Ng4 {[%clk 0:01:28]} 22. Rxd8 {[%clk 0:01:41]}  Qxd8 {[%clk 0:01:23]} 23. Bxg4 {[%clk 0:01:32]}  fxg4 {[%clk 0:01:24]} 24. Qe2 {[%clk 0:01:14]}  Rxf2 {[%clk 0:01:17]} 25. Qxe4+ {[%clk 0:01:14]}  Kh8 {[%clk 0:01:15]} 26. a5 {[%clk 0:01:09]}  Rf4+ {[%clk 0:01:11]} 27. axb6 {[%clk 0:01:00]}  Qxb6+ {[%clk 0:01:10]} 0-1

[Event "December 12 Early 2023"]
[Site "https://www.chess.com"]
[Date "2023.12.12"]
[Round "2"]
[White "Chigaev, Maksim"]
[Black "Janaszak, Dawid"]
[Result "1-0"]
[Board "24"]
[TimeControl "180+1"]
[WhiteFideId "4108116"]
[BlackFideId "1119206"]
[WhiteElo "2939"]
[BlackElo "2616"]
[WhiteTeam "ESP"]
[BlackTeam "POL"]
[WhiteClock "0:00:21"]
[BlackClock "0:00:03"]

1. d4 {[%clk 0:03:00]}  d5 {[%clk 0:02:56]} 2. c4 {[%clk 0:03:00]}  e6 {[%clk 0:02:57]} 3. Nf3 {[%clk 0:02:59]}  c5 {[%clk 0:02:57]} 4. cxd5 {[%clk 0:02:57]}  exd5 {[%clk 0:02:58]} 5. g3 {[%clk 0:02:57]}  Nc6 {[%clk 0:02:58]} 6. Bg2 {[%clk 0:02:57]}  Nf6 {[%clk 0:02:58]} 7. O-O {[%clk 0:02:54]}  Be7 {[%clk 0:02:59]} 8. dxc5 {[%clk 0:02:53]}  Bxc5 {[%clk 0:03:00]} 9. b3 {[%clk 0:02:51]}  O-O {[%clk 0:02:57]} 10. Bb2 {[%clk 0:02:51]}  Re8 {[%clk 0:02:51]} 11. Nc3 {[%clk 0:02:49]}  h6 {[%clk 0:02:28]} 12. Rc1 {[%clk 0:02:45]}  Bf8 {[%clk 0:02:22]} 13. Nb5 {[%clk 0:02:39]}  Ne4 {[%clk 0:02:17]} 14. Nfd4 {[%clk 0:02:32]}  Bd7 {[%clk 0:02:14]} 15. e3 {[%clk 0:02:29]}  Qa5 {[%clk 0:01:55]} 16. a3 {[%clk 0:02:19]}  a6 {[%clk 0:01:50]} 17. b4 {[%clk 0:02:16]}  Qd8 {[%clk 0:01:50]} 18. Nxc6 {[%clk 0:02:16]}  bxc6 {[%clk 0:01:47]} 19. Nd4 {[%clk 0:02:15]}  Rc8 {[%clk 0:01:31]} 20. Rc2 {[%clk 0:01:44]}  a5 {[%clk 0:01:29]} 21. Qc1 {[%clk 0:01:44]}  axb4 {[%clk 0:01:29]} 22. axb4 {[%clk 0:01:40]}  Qb6 {[%clk 0:01:29]} 23. Ba3 {[%clk 0:01:31]}  Ra8 {[%clk 0:01:22]} 24. h4 {[%clk 0:01:09]}  Qa6 {[%clk 0:01:21]} 25. Bb2 {[%clk 0:01:05]}  Bxb4 {[%clk 0:00:55]} 26. Nxc6 {[%clk 0:00:56]}  Bd2 {[%clk 0:00:49]} 27. Rxd2 {[%clk 0:00:47]}  Nxd2 {[%clk 0:00:49]} 28. Qc3 {[%clk 0:00:33]}  f6 {[%clk 0:00:30]} 29. Nb4 {[%clk 0:00:33]}  Qe2 {[%clk 0:00:20]} 30. Nxd5 {[%clk 0:00:32]}  Rac8 {[%clk 0:00:15]} 31. Nxf6+ {[%clk 0:00:32]}  Kh8 {[%clk 0:00:15]} 32. Qd4 {[%clk 0:00:30]}  Nb3 {[%clk 0:00:10]} 33. Qxd7 {[%clk 0:00:28]}  Qxb2 {[%clk 0:00:09]} 34. Nxe8 {[%clk 0:00:26]}  Rb8 {[%clk 0:00:07]} 35. Qf7 {[%clk 0:00:22]}  Nd2 {[%clk 0:00:07]} 36. Qf8+ {[%clk 0:00:16]}  Kh7 {[%clk 0:00:06]} 37. Qf5+ {[%clk 0:00:17]}  Kh8 {[%clk 0:00:07]} 38. Nd6 {[%clk 0:00:16]}  Nxf1 {[%clk 0:00:05]} 39. Bxf1 {[%clk 0:00:17]}  Qf6 {[%clk 0:00:05]} 40. Qxf6 {[%clk 0:00:17]}  gxf6 {[%clk 0:00:06]} 41. Nf5 {[%clk 0:00:18]}  Kh7 {[%clk 0:00:06]} 42. h5 {[%clk 0:00:18]}  Rb2 {[%clk 0:00:05]} 43. g4 {[%clk 0:00:19]}  Rb4 {[%clk 0:00:05]} 44. Kg2 {[%clk 0:00:19]}  Rxg4+ {[%clk 0:00:05]} 45. Ng3 {[%clk 0:00:19]}  Rg5 {[%clk 0:00:06]} 46. Bd3+ {[%clk 0:00:19]}  Kh8 {[%clk 0:00:05]} 47. Bf5 {[%clk 0:00:20]}  Rg7 {[%clk 0:00:05]} 48. Bg6 {[%clk 0:00:20]}  Re7 {[%clk 0:00:06]} 49. Nf5 {[%clk 0:00:21]}  Re4 {[%clk 0:00:06]} 50. Nxh6 {[%clk 0:00:21]}  Rh4 {[%clk 0:00:06]} 51. Kg3 {[%clk 0:00:20]}  Rh1 {[%clk 0:00:06]} 52. Nf5 {[%clk 0:00:21]}  Kg8 {[%clk 0:00:05]} 53. f3 {[%clk 0:00:21]}  Kh8 {[%clk 0:00:06]} 54. Kf4 {[%clk 0:00:22]}  Rh4+ {[%clk 0:00:03]} 55. Nxh4 {[%clk 0:00:21]} 1-0

[Event "December 12 Early 2023"]
[Site "https://www.chess.com"]
[Date "2023.12.12"]
[Round "2"]
[White "Kovalenko, Igor"]
[Black "Mendez Fortes, Eduardo Jesus"]
[Result "1-0"]
[Board "25"]
[TimeControl "180+1"]
[WhiteFideId "14117908"]
[BlackFideId "3502376"]
[WhiteElo "2925"]
[BlackElo "2611"]
[WhiteTeam "UKR"]
[BlackTeam "CUB"]
[WhiteClock "0:01:24"]
[BlackClock "0:01:34"]

1. c4 {[%clk 0:03:00]}  e6 {[%clk 0:02:56]} 2. g3 {[%clk 0:02:59]}  Nf6 {[%clk 0:02:56]} 3. Bg2 {[%clk 0:02:59]}  d5 {[%clk 0:02:57]} 4. Nf3 {[%clk 0:02:59]}  dxc4 {[%clk 0:02:57]} 5. Qa4+ {[%clk 0:02:59]}  Nbd7 {[%clk 0:02:58]} 6. Qxc4 {[%clk 0:03:00]}  a6 {[%clk 0:02:58]} 7. Qc2 {[%clk 0:02:59]}  c5 {[%clk 0:02:57]} 8. a4 {[%clk 0:02:59]}  Bd6 {[%clk 0:02:49]} 9. a5 {[%clk 0:02:59]}  Qc7 {[%clk 0:02:48]} 10. O-O {[%clk 0:02:57]}  O-O {[%clk 0:02:48]} 11. d3 {[%clk 0:02:57]}  e5 {[%clk 0:02:46]} 12. Nbd2 {[%clk 0:02:56]}  Nd5 {[%clk 0:02:39]} 13. Nc4 {[%clk 0:02:56]}  Nb4 {[%clk 0:02:37]} 14. Qb3 {[%clk 0:02:48]}  Nc6 {[%clk 0:02:33]} 15. e3 {[%clk 0:02:47]}  Re8 {[%clk 0:02:27]} 16. Bd2 {[%clk 0:02:47]}  Rb8 {[%clk 0:02:26]} 17. Ng5 {[%clk 0:02:42]}  Nf6 {[%clk 0:02:19]} 18. Qb6 {[%clk 0:02:40]}  Qxb6 {[%clk 0:02:15]} 19. axb6 {[%clk 0:02:36]}  Bf5 {[%clk 0:02:07]} 20. Bxc6 {[%clk 0:02:35]}  bxc6 {[%clk 0:02:08]} 21. e4 {[%clk 0:02:27]}  Bc8 {[%clk 0:02:07]} 22. Nxd6 {[%clk 0:02:27]}  Rd8 {[%clk 0:01:58]} 23. Nxc8 {[%clk 0:02:01]}  Rdxc8 {[%clk 0:01:55]} 24. Rxa6 {[%clk 0:02:00]}  Rd8 {[%clk 0:01:55]} 25. Bc3 {[%clk 0:01:58]}  Nd7 {[%clk 0:01:55]} 26. Nf3 {[%clk 0:01:56]}  f6 {[%clk 0:01:54]} 27. b7 {[%clk 0:01:55]}  Rxb7 {[%clk 0:01:53]} 28. Rxc6 {[%clk 0:01:55]}  Kf7 {[%clk 0:01:53]} 29. Ra1 {[%clk 0:01:55]}  Nf8 {[%clk 0:01:53]} 30. Rxc5 {[%clk 0:01:54]}  Rxd3 {[%clk 0:01:53]} 31. Kg2 {[%clk 0:01:54]}  Ne6 {[%clk 0:01:53]} 32. Rc8 {[%clk 0:01:52]}  Rdd7 {[%clk 0:01:50]} 33. h4 {[%clk 0:01:52]}  h6 {[%clk 0:01:49]} 34. h5 {[%clk 0:01:52]}  Rb5 {[%clk 0:01:45]} 35. Raa8 {[%clk 0:01:51]}  Nc5 {[%clk 0:01:45]} 36. Rf8+ {[%clk 0:01:49]}  Ke6 {[%clk 0:01:44]} 37. Rfe8+ {[%clk 0:01:41]}  Kf7 {[%clk 0:01:44]} 38. Bxe5 {[%clk 0:01:38]}  Nxe4 {[%clk 0:01:42]} 39. Rab8 {[%clk 0:01:28]}  Rbd5 {[%clk 0:01:39]} 40. Bf4 {[%clk 0:01:25]}  Rc5 {[%clk 0:01:34]} 41. Rxe4 {[%clk 0:01:24]} 1-0